bitfinex/quotes_SOLUSD_20220302
["timestamp","ask_amount","ask_price","bid_price","bid_amount"]
[1646250825365,14.8293,101.25,101.18,24.2347]
[1646250827466,14.8293,101.25,101.19,59.6]
[1646250827668,14.8293,101.25,101.19,159.48]
[1646250828066,18.7776,101.27,101.19,159.48]
[1646250828269,18.7776,101.27,101.19,161.6321092]
[1646250828467,14.8266,101.27,101.19,176.4563092]
[1646250828776,3.951,101.29,101.23,159.23]
[1646250828967,5.0,101.31,101.24,59.6]
[1646250829168,5.0,101.31,101.24,159.48]
[1646250829368,8.948,101.31,101.24,159.48]
[1646250829567,3.948,101.32,101.24,159.48]
[1646250830169,14.8205,101.31,101.24,159.48]
[1646250831271,14.8205,101.31,101.24,174.3444]
[1646250831470,3.948,101.32,101.24,193.84171553]
[1646250831668,18.7658,101.33,101.26,159.23]
[1646250831871,14.8178,101.33,101.27,60.53632847]
[1646250832068,3.948,101.34,101.27,220.01632847]
[1646250832270,1.73992374,101.35,101.27,222.29973168]
[1646250832271,3.948,101.35,101.27,222.29973168]
[1646250832469,3.948,101.36,101.29,159.23]
[1646250832670,3.948,101.36,101.29,159.48]
[1646250832671,14.8145,101.35,101.29,159.48]
[1646250833070,14.8145,101.35,101.28,182.2401]
[1646250833273,14.8145,101.35,101.28,23.0101]
[1646250833474,3.948,101.34,101.28,23.0101]
[1646250833674,4.06469339,101.36,101.28,23.0101]
[1646250833873,9.06469339,101.36,101.28,23.0101]
[1646250834072,31.59207958,101.36,101.28,23.0101]
[1646250834274,31.47538619,101.36,101.28,23.0101]
[1646250835076,14.8174,101.33,101.28,23.0101]
[1646250835577,3.948,101.34,101.24,74.4644]
[1646250835775,0.1349932,101.33,101.25,23.7207]
[1646250835975,0.1349932,101.33,101.25,23.9707]
[1646250836175,8.948,101.34,101.25,23.9707]
[1646250837078,14.8198,101.31,101.25,23.9707]
[1646250837884,14.8198,101.31,101.23,1.92392845]
[1646250838076,14.8242,101.28,101.21,24.4057]
[1646250840779,14.8242,101.28,101.21,183.6357]
[1646250840976,88.9082,101.3,101.21,186.13759086]
[1646250840977,38.3617,101.3,101.21,186.13759086]
[1646250841177,38.3617,101.3,101.22,65.6]
[1646250841377,3.95,101.29,101.22,65.85]
[1646250841576,38.3617,101.3,101.23,165.23]
[1646250841776,23.9781,101.33,101.23,165.48]
[1646250841977,14.8197,101.31,101.24,68.68430175]
[1646250842176,14.8197,101.31,101.24,24.3704]
[1646250844982,14.8197,101.31,101.24,24.1204]
[1646250845183,14.8197,101.31,101.24,24.3704]
[1646250845585,14.8197,101.31,101.24,183.6004]
[1646250845785,3.948,101.32,101.24,183.6004]
[1646250845984,67.0282,101.33,101.24,183.6004]
[1646250846183,52.2105,101.33,101.24,183.6004]
[1646250846884,52.2105,101.33,101.24,207.9583]
[1646250847084,14.8183,101.32,101.24,207.9583]
[1646250847285,14.8183,101.32,101.25,165.23]
[1646250847485,14.8183,101.32,101.25,165.48]
[1646250848686,14.8183,101.32,101.25,8.49138461]
[1646250848885,14.8183,101.32,101.25,0.25]
[1646250849085,14.8197,101.31,101.24,125.67666124]
[1646250850188,14.8197,101.31,101.24,66.07666124]
[1646250850389,14.8211,101.3,101.24,48.7283]
[1646250850592,14.8211,101.3,101.24,48.4783]
[1646250850790,14.8211,101.3,101.24,148.1083]
[1646250850989,49.4045,101.33,101.24,148.1083]
[1646250851293,49.4045,101.33,101.24,207.7083]
[1646250851990,14.8192,101.32,101.24,207.9583]
[1646250852792,14.8192,101.32,101.24,222.7509]
[1646250853195,14.8198,101.31,101.24,222.7509]
[1646250853593,14.8198,101.31,101.24,48.7283]
[1646250853794,49.7576154,101.32,101.24,48.4783]
[1646250853994,3.948,101.31,101.2,24.8125]
[1646250854194,0.3483154,101.3,101.2,24.8125]
[1646250854623,0.3483154,101.3,101.2,84.4125]
[1646250854824,15.948,101.31,101.2,143.73495744]
[1646250855022,14.824,101.28,101.2,84.4125]
[1646250856025,14.824,101.28,101.2,128.45767207]
[1646250856226,14.824,101.28,101.2,68.85767207]
[1646250856528,14.824,101.28,101.2,69.10767207]
[1646250857227,14.824,101.28,101.2,228.33767207]
[1646250857424,14.824,101.28,101.2,230.77104026]
[1646250857626,14.824,101.28,101.21,165.23]
[1646250857826,14.824,101.28,101.21,165.48]
[1646250858626,14.824,101.28,101.21,6.0]
[1646250858828,14.824,101.28,101.2,68.85767207]
[1646250859127,14.824,101.28,101.2,69.10767207]
[1646250859726,14.824,101.28,101.2,66.60767207]
[1646250860528,14.824,101.28,101.2,126.20767207]
[1646250863030,14.824,101.28,101.21,159.23]
[1646250863230,14.824,101.28,101.21,99.63]
[1646250863433,14.824,101.28,101.2,68.59351736]
[1646250864131,14.824,101.28,101.2,128.19351736]
[1646250864331,14.824,101.28,101.2,227.82351736]
[1646250865031,14.824,101.28,101.2,68.59351736]
[1646250865232,14.824,101.28,101.2,66.60767207]
[1646250866034,14.824,101.28,101.2,228.19030961]
[1646250866232,14.824,101.28,101.21,65.6]
[1646250866433,14.824,101.28,101.21,65.85]
[1646250868338,18.774,101.28,101.21,59.6]
[1646250869038,0.36954838,101.27,101.2,68.71030961]
[1646250869239,0.36954838,101.27,101.2,22.5625]
[1646250869439,15.19574838,101.27,101.2,22.5625]
[1646250869938,15.19574838,101.27,101.2,22.3125]
[1646250870143,14.8262,101.27,101.2,22.3125]
[1646250870341,3.951,101.26,101.19,23.1813]
[1646250870541,3.951,101.28,101.19,23.1813]
[1646250870739,15.951,101.28,101.19,23.1813]
[1646250870941,14.8305,101.25,101.19,23.1813]
[1646250871743,14.8305,101.25,101.19,23.4313]
[1646250872843,14.8305,101.25,101.19,23.1813]
[1646250873449,14.8305,101.25,101.19,182.4113]
[1646250873646,14.8305,101.25,101.19,82.7813]
[1646250874144,14.8305,101.25,101.19,23.1813]
[1646250874744,14.8305,101.25,101.19,182.4113]
[1646250875744,14.8266,101.27,101.19,184.61601626]
[1646250875945,3.951,101.29,101.23,59.6]
[1646250876146,28.8363,101.3,101.23,59.6]
[1646250876347,23.8363,101.3,101.23,59.85]
[1646250876747,14.8212,101.3,101.23,84.5821]
[1646250876947,53.3565,101.32,101.23,84.5821]
[1646250877147,53.3565,101.32,101.23,24.9821]
[1646250877351,18.91112412,101.31,101.19,28.1813]
[1646250877552,3.95,101.3,101.19,46.5156]
[1646250877750,12.0,101.29,101.19,46.5156]
[1646250877950,3.951,101.28,101.19,46.5156]
[1646250878148,30.7754,101.28,101.19,108.49239155]
[1646250878348,26.8244,101.28,101.2,57.7469296]
[1646250880448,26.8244,101.28,101.19,46.5156]
[1646250880649,26.8244,101.28,101.19,46.7656]
[1646250880865,31.8244,101.28,101.19,46.7656]
[1646250881071,31.8244,101.28,101.19,46.5156]
[1646250881269,3.951,101.27,101.16,5.0]
[1646250881475,14.8316,101.24,101.17,81.77514396]
[1646250881667,21.8916,101.24,101.17,81.77514396]
[1646250882465,21.8916,101.24,101.17,82.02514396]
[1646250885066,14.8316,101.24,101.17,82.02514396]
[1646250885267,14.8316,101.24,101.17,241.25514396]
[1646250885466,3.952,101.25,101.17,243.43791082]
[1646250885672,14.8278,101.26,101.17,243.43791082]
[1646250885967,14.8278,101.26,101.17,243.28694427]
[1646250886571,14.8278,101.26,101.17,83.80694427]
[1646250886768,14.831,101.24,101.17,83.80694427]
[1646250888169,14.831,101.24,101.17,84.05694427]
[1646250888669,14.831,101.24,101.17,143.62963945]
[1646250888869,14.831,101.24,101.17,243.25963945]
[1646250889071,3.951,101.25,101.17,243.25963945]
[1646250889072,18.7797,101.26,101.17,243.25963945]
[1646250889470,14.8277,101.26,101.17,243.25963945]
[1646250891174,14.8277,101.26,101.17,143.62963945]
[1646250892177,14.8277,101.26,101.17,84.02963945]
[1646250892377,18.7787,101.26,101.17,84.02963945]
[1646250893579,18.7787,101.26,101.17,143.62963945]
[1646250893779,18.7787,101.26,101.17,243.25963945]
[1646250893979,18.7787,101.26,101.17,143.62963945]
[1646250894779,18.7787,101.26,101.17,243.25963945]
[1646250894978,14.8277,101.26,101.17,243.25963945]
[1646250895179,26.8277,101.26,101.17,243.25963945]
[1646250895581,26.8277,101.26,101.17,143.62963945]
[1646250896580,26.8277,101.26,101.17,243.25963945]
[1646250898685,26.8277,101.26,101.17,143.37963945]
[1646250898884,30.7787,101.26,101.17,143.37963945]
[1646250899388,30.7787,101.26,101.17,243.00963945]
[1646250899786,18.7787,101.26,101.17,243.00963945]
[1646250899987,26.8673,101.27,101.19,161.29588859]
[1646250900185,26.8673,101.27,101.19,161.96312372]
[1646250900785,22.9163,101.27,101.21,56.28832328]
[1646250900989,14.8255,101.27,101.21,56.28832328]
[1646250901388,26.12656619,101.29,101.21,215.51832328]
[1646250901589,3.95,101.28,101.22,65.6]
[1646250901789,51.959,101.3,101.23,24.4181]
[1646250901990,51.959,101.3,101.23,24.6681]
[1646250902989,14.8236,101.29,101.23,24.6681]
[1646250903191,14.8236,101.29,101.23,24.4181]
[1646250903389,76.14997181,101.3,101.21,56.28832328]
[1646250903590,137.56997181,101.3,101.21,56.28832328]
[1646250903791,24.19097181,101.29,101.2,23.8828]
[1646250903991,36.19097181,101.29,101.2,24.1328]
[1646250904192,3.95,101.28,101.2,24.1328]
[1646250904998,18.7744,101.28,101.2,23.8828]
[1646250905796,30.7744,101.28,101.2,23.8828]
[1646250906399,30.7744,101.28,101.2,24.1328]
[1646250906800,35.93563757,101.28,101.2,24.1328]
[1646250907300,61.89041876,101.28,101.2,24.1328]
[1646250908301,61.89041876,101.28,101.2,80.15564834]
[1646250909202,56.72918119,101.28,101.2,80.15564834]
[1646250910103,56.72918119,101.28,101.2,24.1328]
[1646250910303,56.72918119,101.28,101.2,23.8828]
[1646250912406,32.53820938,101.28,101.2,23.8828]
[1646250912607,30.7744,101.28,101.2,185.58473128]
[1646250912806,14.8244,101.28,101.2,185.58473128]
[1646250913609,14.8222,101.3,101.22,159.23]
[1646250913807,14.8222,101.3,101.23,121.17934154]
[1646250914008,14.8222,101.3,101.23,61.82934154]
[1646250914409,14.8222,101.3,101.23,86.38044154]
[1646250914630,14.8222,101.3,101.23,84.08166099]
[1646250915834,14.8222,101.3,101.23,24.8011]
[1646250916434,14.8222,101.3,101.23,24.5511]
[1646250916934,14.8222,101.3,101.23,68.77599737]
[1646250917735,14.8222,101.3,101.23,69.02599737]
[1646250918034,14.8222,101.3,101.23,130.62702146]
[1646250918236,14.8222,101.3,101.23,230.25702146]
[1646250922137,0.26096102,101.29,101.23,26.55212409]
[1646250922338,15.08366102,101.29,101.23,24.5511]
[1646250923038,0.26096102,101.29,101.21,6.0]
[1646250923239,8.95,101.31,101.2,79.26000271]
[1646250923437,36.5839,101.3,101.2,79.26000271]
[1646250923638,62.53868119,101.3,101.2,79.26000271]
[1646250924039,14.8241,101.28,101.2,79.26000271]
[1646250924238,14.8241,101.28,101.2,79.51000271]
[1646250924638,14.8241,101.28,101.2,181.62300367]
[1646250926741,14.8241,101.28,101.2,81.99300367]
[1646250927943,14.8241,101.28,101.2,241.22300367]
[1646250930852,3.951,101.29,101.2,241.22300367]
[1646250931047,39.4059,101.3,101.2,243.7720437]
[1646250931246,14.822,101.3,101.22,159.23]
[1646250931447,14.822,101.3,101.23,30.8971]
[1646250931646,14.822,101.3,101.23,31.1471]
[1646250932048,14.8226,101.29,101.23,30.8971]
[1646250932248,14.8226,101.29,101.24,56.11777103]
[1646250932747,14.8226,101.29,101.23,90.4971]
[1646250932946,14.8226,101.29,101.23,32.81678966]
[1646250934149,14.8242,101.28,101.23,30.8971]
[1646250934748,14.8242,101.28,101.2,5.0]
[1646250934947,16.59429769,101.28,101.19,102.9675]
[1646250935148,44.72847295,101.28,101.19,102.9675]
[1646250935548,44.72847295,101.28,101.19,154.91901583]
[1646250935750,56.72847295,101.28,101.19,155.16901583]
[1646250935948,52.77747295,101.28,101.19,155.16901583]
[1646250936749,76.84017295,101.28,101.19,155.16901583]
[1646250937351,91.78457295,101.28,101.19,155.16901583]
[1646250937549,91.78457295,101.28,101.19,28.3496]
[1646250937750,0.1693628,101.26,101.19,28.3496]
[1646250937952,14.8295,101.25,101.19,28.3496]
[1646250941058,14.8295,101.25,101.19,28.5996]
[1646250941254,14.8263,101.27,101.19,187.5796]
[1646250941457,14.8263,101.27,101.19,190.24631529]
[1646250941755,14.8263,101.27,101.2,67.6724304]
[1646250941955,14.8263,101.27,101.2,6.0]
[1646250942154,14.8263,101.27,101.2,6.25]
[1646250942957,18.7773,101.27,101.2,6.25]
[1646250943357,18.7773,101.27,101.2,6.0]
[1646250944559,23.93883651,101.27,101.2,6.0]
[1646250946361,0.13894806,101.26,101.19,24.3986]
[1646250946561,9.11253651,101.27,101.19,24.6486]
[1646250946762,14.8292,101.25,101.19,24.6486]
[1646250947562,14.8292,101.25,101.19,24.3986]
[1646250950863,18.7802,101.25,101.19,24.3986]
[1646250954468,0.1576197,101.24,101.19,24.3986]
[1646250954671,14.8316,101.23,101.19,24.3986]
[1646250956168,18.7805,101.25,101.19,74.78168531]
[1646250956369,53.3893,101.26,101.19,24.3986]
[1646250957571,14.8299,101.24,101.19,24.3986]
[1646250960574,5.72075777,101.26,101.19,24.3986]
[1646250960773,16.59765777,101.26,101.19,24.3986]
[1646250962476,40.78083303,101.26,101.19,24.3986]
[1646250963394,16.59765777,101.26,101.19,24.3986]
[1646250964195,28.59765777,101.26,101.19,24.3986]
[1646250965095,14.8315,101.24,101.19,24.3986]
[1646250965496,14.8315,101.24,101.18,23.4833]
[1646250965697,0.17493791,101.23,101.12,130.40580724]
[1646250965897,16.12693791,101.23,101.13,55.98193782]
[1646250966099,17.89669568,101.23,101.13,56.23193782]
[1646250966497,17.89669568,101.23,101.13,112.7559393]
[1646250966699,17.72175777,101.23,101.13,112.7559393]
[1646250966897,14.8354,101.21,101.13,47.5025]
[1646250967296,39.51415777,101.21,101.13,47.5025]
[1646250967697,39.51415777,101.21,101.11,1.87601681]
[1646250967698,64.50012636,101.21,101.11,1.87601681]
[1646250967898,64.50012636,101.21,101.08,3.952]
[1646250967899,0.19300566,101.2,101.09,46.8865]
[1646250968098,14.8446,101.18,101.09,46.8865]
[1646250968299,26.8446,101.18,101.09,46.8865]
[1646250968499,1.76975777,101.17,101.09,46.8865]
[1646250968998,1.76975777,101.17,101.09,97.19689222]
[1646250969601,1.76975777,101.17,101.09,46.8865]
[1646250969800,14.8428,101.16,101.09,46.8865]
[1646250970501,26.8428,101.16,101.09,46.8865]
[1646250971001,3.955,101.15,101.09,46.8865]
[1646250971203,14.8457,101.14,101.09,46.8865]
[1646250974105,18.8007,101.14,101.09,46.8865]
[1646250974303,14.8457,101.14,101.09,46.8865]
[1646250977207,20.56653003,101.14,101.07,3.955]
[1646250977408,12.35339589,101.13,101.07,3.955]
[1646250977805,14.11922592,101.13,101.07,3.955]
[1646250978406,18.8075,101.12,101.07,3.955]
[1646250978607,30.8075,101.12,101.07,3.955]
[1646250979008,30.8075,101.12,101.04,44.4393467]
[1646250982613,14.8515,101.12,101.04,206.18118094]
[1646250983013,3.956,101.13,101.04,206.18118094]
[1646250983214,18.8015,101.14,101.04,220.73022097]
[1646250983413,18.8015,101.14,101.06,161.47654465]
[1646250983414,14.8455,101.14,101.06,161.47654465]
[1646250983613,14.8455,101.14,101.07,167.70006769]
[1646250983815,14.8455,101.14,101.08,47.24681201]
[1646250984116,14.8455,101.14,101.08,206.47681201]
[1646250984313,18.7986,101.16,101.08,208.95396546]
[1646250984516,18.7986,101.16,101.1,62.09877294]
[1646250984715,14.8426,101.16,101.1,62.34877294]
[1646250985113,14.8426,101.16,101.1,161.97877294]
[1646250987019,63.59147083,101.19,101.1,161.72877294]
[1646250987217,5.16637083,101.19,101.12,161.62466506]
[1646250987418,5.71983003,101.21,101.13,45.75648029]
[1646250988217,6.76583003,101.21,101.13,45.75648029]
[1646250988618,10.71783003,101.21,101.12,2.39466506]
[1646250988818,14.8368,101.2,101.11,25.7829704]
[1646250989018,14.8368,101.2,101.12,6.0]
[1646250989219,16.60263003,101.2,101.11,23.842]
[1646250989420,3.954,101.19,101.11,23.842]
[1646250989820,5.71983003,101.19,101.11,23.842]
[1646250990019,14.8418,101.17,101.11,23.842]
[1646250992923,14.8418,101.17,101.11,24.092]
[1646250993524,14.8418,101.17,101.11,83.692]
[1646250993823,16.60373003,101.19,101.11,185.548615]
[1646250994024,14.8379,101.19,101.11,185.798615]
[1646250995523,14.8379,101.19,101.12,165.23]
[1646250995724,14.8379,101.19,101.12,167.49531542]
[1646250996924,14.8379,101.19,101.12,67.86531542]
[1646250997327,14.8379,101.19,101.12,6.25]
[1646250997527,14.8379,101.19,101.12,6.0]
[1646250998127,14.8379,101.19,101.11,23.842]
[1646250998325,14.8379,101.19,101.11,24.092]
[1646251001531,14.8379,101.19,101.11,83.692]
[1646251001733,14.8379,101.19,101.11,85.61468581]
[1646251002436,14.8379,101.19,101.11,100.11478581]
[1646251004435,14.8379,101.19,101.11,24.092]
[1646251004653,3.954,101.18,101.11,24.092]
[1646251004854,14.8405,101.17,101.11,24.092]
[1646251005554,14.8405,101.17,101.11,23.842]
[1646251007156,14.8405,101.17,101.07,79.67011588]
[1646251007358,5.72711936,101.16,101.08,24.4828]
[1646251007561,14.8474,101.15,101.08,24.4828]
[1646251009162,14.8474,101.15,101.08,86.15745528]
[1646251009460,14.8412,101.17,101.08,186.03745528]
[1646251009660,14.8412,101.17,101.1,59.6]
[1646251009861,14.8412,101.17,101.1,84.92824872]
[1646251010560,14.8412,101.17,101.1,184.55824872]
[1646251010761,14.8412,101.17,101.11,215.32886965]
[1646251010961,14.8412,101.17,101.11,215.57886965]
[1646251011965,14.8412,101.17,101.11,213.27057661]
[1646251012163,14.8412,101.17,101.11,213.52057661]
[1646251012364,18.7931,101.19,101.11,213.52057661]
[1646251013165,18.7931,101.19,101.11,228.37957661]
[1646251015767,14.8381,101.19,101.11,228.37957661]
[1646251015968,14.8381,101.19,101.11,128.49957661]
[1646251016168,0.19845998,101.18,101.1,23.168]
[1646251016369,14.8413,101.17,101.1,23.168]
[1646251016567,0.19845998,101.16,101.1,23.168]
[1646251016969,0.19943348,101.17,101.1,23.168]
[1646251017368,58.4312,101.18,101.1,23.168]
[1646251017567,14.8427,101.17,101.1,23.168]
[1646251018671,16.61470467,101.17,101.1,23.168]
[1646251018969,14.8441,101.15,101.1,23.168]
[1646251020273,14.8441,101.15,101.09,24.9708]
[1646251020470,3.955,101.14,101.03,117.9]
[1646251020770,15.14509366,101.13,101.03,5.0]
[1646251020971,12.0,101.12,100.99,16.75505611]
[1646251021171,102.2932,101.11,101.01,59.6]
[1646251021372,110.3352,101.11,101.01,161.70443064]
[1646251021571,14.8547,101.1,101.01,161.70443064]
[1646251021771,3.958,101.13,101.01,164.25347067]
[1646251022171,15.958,101.13,101.01,164.25347067]
[1646251022471,42.68438124,101.13,101.01,169.25347067]
[1646251022973,15.958,101.13,101.06,59.6]
[1646251023172,15.958,101.13,101.04,46.77365037]
[1646251023173,3.958,101.13,101.05,59.6]
[1646251023371,3.958,101.13,101.05,59.85]
[1646251023571,41.3225,101.14,101.05,59.85]
[1646251023772,53.3225,101.14,101.05,59.85]
[1646251023971,53.3225,101.14,101.04,44.72839406]
[1646251024171,81.82088591,101.14,101.02,138.52]
[1646251024371,81.82088591,101.14,101.02,78.92]
[1646251024771,82.04631667,101.14,101.02,78.92]
[1646251025574,5.0,101.13,101.02,103.0849]
[1646251025771,15.956,101.12,101.02,103.0849]
[1646251025971,84.10178591,101.12,101.02,103.0849]
[1646251026173,28.49852864,101.11,101.02,103.3349]
[1646251026373,15.956,101.1,101.02,24.1649]
[1646251026573,15.956,101.1,101.02,24.4149]
[1646251027075,12.0,101.1,101.02,24.4149]
[1646251027276,14.8547,101.1,101.02,183.3949]
[1646251027476,14.8547,101.1,101.02,185.68489454]
[1646251027676,53.7139,101.12,101.02,188.23393457]
[1646251027875,3.957,101.13,101.02,188.23393457]
[1646251028078,3.956,101.16,101.02,200.23393457]
[1646251028276,3.956,101.17,101.09,159.23]
[1646251028476,3.956,101.17,101.1,6.0]
[1646251028677,26.72638124,101.17,101.09,2.54904003]
[1646251028875,3.955,101.16,101.06,123.3793]
[1646251029076,27.5048,101.16,101.06,123.6293]
[1646251029675,27.5048,101.16,101.07,52.50243379]
[1646251029876,27.5048,101.16,101.07,52.75243379]
[1646251030177,14.8453,101.15,101.07,211.98243379]
[1646251030375,27.5048,101.16,101.07,214.26903347]
[1646251030980,27.5048,101.16,101.07,114.63903347]
[1646251031176,69.07278124,101.16,101.07,52.75243379]
[1646251031576,70.84492864,101.16,101.07,52.75243379]
[1646251032475,70.84492864,101.16,101.07,52.50243379]
[1646251032677,70.84492864,101.16,101.07,52.75243379]
[1646251032975,70.84492864,101.16,101.06,123.3793]
[1646251033175,12.0,101.15,101.03,64.96907295]
[1646251033379,18.90996495,101.14,101.03,50.12207295]
[1646251033576,59.39982692,101.14,101.03,50.12207295]
[1646251033777,26.71771457,101.13,101.03,50.12207295]
[1646251033978,3.956,101.12,101.03,110.38454755]
[1646251034578,3.956,101.12,101.03,169.98454755]
[1646251034977,1.7721474,101.12,101.05,159.23]
[1646251035179,28.48986197,101.15,101.05,161.5601863]
[1646251035378,24.9012,101.17,101.06,2.54904003]
[1646251035577,24.9012,101.17,101.08,161.48394132]
[1646251035778,24.9012,101.17,101.08,161.73394132]
[1646251036377,24.9012,101.17,101.08,185.80574132]
[1646251037178,14.8425,101.16,101.08,185.80574132]
[1646251037379,14.8425,101.16,101.08,85.92574132]
[1646251037581,14.8425,101.16,101.08,26.57574132]
[1646251038584,18.7989,101.15,101.08,26.57574132]
[1646251038781,14.8439,101.15,101.08,26.57574132]
[1646251038981,14.8439,101.15,101.08,26.32574132]
[1646251039182,14.8439,101.15,101.08,26.57574132]
[1646251040382,14.8439,101.15,101.08,24.3218]
[1646251040584,14.8439,101.15,101.08,24.0718]
[1646251040785,3.955,101.16,101.08,24.0718]
[1646251040786,3.955,101.16,101.08,185.8024907]
[1646251040985,105.05371457,101.17,101.08,185.8024907]
[1646251041885,105.05371457,101.17,101.08,86.1724907]
[1646251042085,101.09871457,101.17,101.08,86.1724907]
[1646251043388,3.955,101.16,101.08,86.1724907]
[1646251043586,18.7978,101.16,101.08,86.1724907]
[1646251044488,18.7978,101.16,101.08,85.9224907]
[1646251044691,14.8428,101.16,101.08,185.5524907]
[1646251045087,14.8428,101.16,101.08,202.94213073]
[1646251045288,24.9012,101.17,101.08,188.10153073]
[1646251045493,24.9012,101.17,101.08,200.10153073]
[1646251045906,24.9012,101.17,101.08,200.35153073]
[1646251046106,24.9012,101.17,101.1,59.6]
[1646251046309,24.9012,101.17,101.11,52.21360124]
[1646251046507,24.9012,101.17,101.11,52.46360124]
[1646251047107,39.7413,101.17,101.11,52.46360124]
[1646251048107,39.7413,101.17,101.11,0.25]
[1646251048312,39.7413,101.17,101.1,26.9707258]
[1646251048507,39.7413,101.17,101.1,26.7207258]
[1646251048708,39.7413,101.17,101.1,185.9507258]
[1646251048910,24.1345,101.18,101.1,183.9691]
[1646251049108,24.1345,101.18,101.11,212.3384753]
[1646251049408,24.1345,101.18,101.11,47.1084753]
[1646251049707,24.1345,101.18,101.11,106.7084753]
[1646251049908,24.1345,101.18,101.11,106.9584753]
[1646251050311,24.1345,101.18,101.11,47.3584753]
[1646251050509,38.9735,101.18,101.11,47.3584753]
[1646251052008,38.9735,101.18,101.11,0.25]
[1646251052210,38.9735,101.18,101.1,86.5557671]
[1646251052709,42.9275,101.18,101.1,86.5557671]
[1646251053309,42.9275,101.18,101.1,24.7391]
[1646251053513,44.6996474,101.18,101.1,24.7391]
[1646251055417,56.6996474,101.18,101.1,24.7391]
[1646251055820,82.743116,101.18,101.1,24.7391]
[1646251057221,82.743116,101.18,101.07,24.8622]
[1646251057421,82.743116,101.18,101.07,47.6946]
[1646251057422,14.846,101.16,101.07,47.6946]
[1646251057621,18.801,101.16,101.07,47.6946]
[1646251057822,20.5731474,101.16,101.07,47.6946]
[1646251058623,20.5731474,101.16,101.03,3.955]
[1646251058624,40.76434483,101.15,101.03,3.955]
[1646251058822,3.956,101.14,101.01,5.0]
[1646251059025,12.28038689,101.13,101.0,3.956]
[1646251059221,27.7959,101.12,100.98,66.07563834]
[1646251059421,12.0,101.11,100.98,66.07563834]
[1646251059721,3.958,101.1,100.99,229.9325249]
[1646251059921,72.5650895,101.1,100.99,230.1825249]
[1646251060221,29.99919049,101.09,100.99,230.1825249]
[1646251060421,79.51739049,101.09,100.99,208.29972619]
[1646251060622,79.51739049,101.09,100.99,49.06972619]
[1646251060923,93.2894895,101.09,100.99,49.06972619]
[1646251061324,93.2894895,101.09,101.0,59.6]
[1646251061526,93.2894895,101.09,101.0,62.04854124]
[1646251061924,91.51739049,101.09,101.0,62.04854124]
[1646251062426,91.51739049,101.09,101.0,0.25]
[1646251062626,91.51739049,101.09,100.99,48.88841908]
[1646251063027,91.51739049,101.09,100.99,108.48841908]
[1646251063227,91.51739049,101.09,100.99,108.23841908]
[1646251063426,61.5182,101.09,100.99,108.23841908]
[1646251063626,29.99919049,101.08,100.99,108.23841908]
[1646251063827,56.85459049,101.08,100.99,108.23841908]
[1646251064029,56.85459049,101.08,100.99,207.86841908]
[1646251064227,60.81359049,101.08,100.99,207.86841908]
[1646251064630,60.81359049,101.08,100.99,208.11841908]
[1646251065628,30.8144,101.08,100.99,208.11841908]
[1646251065827,26.8554,101.08,100.99,208.11841908]
[1646251066032,14.8554,101.08,100.99,208.11841908]
[1646251066530,14.8554,101.08,100.99,213.11841908]
[1646251066730,14.8513,101.1,100.99,208.11841908]
[1646251066928,14.8513,101.1,101.02,161.45343632]
[1646251067129,3.958,101.12,101.04,61.8987925]
[1646251067329,3.958,101.12,101.04,161.7787925]
[1646251067532,112.8658,101.13,101.04,161.7787925]
[1646251068731,142.69165716,101.13,101.04,0.25]
[1646251068930,142.69165716,101.13,101.03,216.14383922]
[1646251071831,23.8035,101.14,101.05,159.23]
[1646251072032,19.8475,101.14,101.05,161.49169426]
[1646251072234,14.8475,101.14,101.06,2.54904003]
[1646251072431,14.8475,101.14,101.06,2.79904003]
[1646251072632,14.8475,101.14,101.06,0.25]